Cogmind - Beta 10.1 @@@ ROGUE MODE // 2020.09.28 @ 17:51:50 // AFD2020/Player2 Player: Minty Result: Destroyed by DAS Turret with DAS Cannon Performance ------------- Evolutions (0) 0 Regions Visited (3) 600 Robots Destroyed (20) 100 Value Destroyed (405) 405 Prototype IDs (3) 60 Alien Tech Used (0) 0 Bonus (-23) -23 TOTAL SCORE: 1142 Bonus ------- High Alert Combat Kills 10 Follower Combat Kills 247 Aligned with FarCom 300 Friendly Fire -580 Cogmind --------- Core Integrity 0/250 Matter 156/300 Energy 90/100 System Corruption 7% Temperature Cool (4) Movement Hovering (76) Location -10/Exiles Parts ------- > --- POWER (1) -------- (None) > --- PROPULSION (2) --- Combat Airjet Combat Airjet > --- UTILITY (2) ------ Small Storage Unit 0b10 Alert Chip > --- WEAPON (2) ------- (None) > --- INVENTORY (6) ---- Improved Heat Sink Structural Scanner Signal Generator Peak State ------------ > --- POWER ------------ Heavy Ion Engine > --- PROPULSION ------- Combat Airjet Combat Airjet > --- UTILITY ---------- Small Storage Unit 0b10 Alert Chip > --- WEAPON ----------- Latent Energy Streamer Grenade Launcher > --- INVENTORY -------- Improved Heat Sink Structural Scanner Signal Generator Deploy-a-Sentry Deploy-a-Sentry Deploy-a-Sentry [Rating: 34] Favorites ----------- Power Heavy Ion Engine Engine Heavy Ion Engine Propulsion Combat Airjet Leg Aluminum Leg Wheel Wheel Hover Unit Combat Airjet Utility Small Storage Unit Storage Small Storage Unit Processor Targeting Computer Weapon Light Cannon Energy Gun Small Laser Energy Cannon Latent Energy Streamer Ballistic Cannon Light Cannon Launcher Grenade Launcher Build | -11 -10 -10 -10 ------- Run | Scr Mat Min Exi Slots Evolved . | . . . . Power . | . . . . Propulsion . | . . . . Utility . | . . . . Weapon . | . . . . Parts Attached 22 | 8 3 9 2 Power 2 | 1 1 . . Engine 2 | 1 1 . . Core . | . . . . Reactor . | . . . . Propulsion 7 | 4 . 3 . Treads . | . . . . Leg 2 | 2 . . . Wheel 3 | 2 . 1 . Hover 2 | . . 2 . Flight . | . . . . Utility 3 | 1 . 1 1 Device . | . . . . Storage 1 | 1 . . . Processor 2 | . . 1 1 Hackware . | . . . . Protection . | . . . . Artifact . | . . . . Weapon 10 | 2 2 5 1 Energy Gun 6 | 2 2 2 . Energy Cannon 1 | . . . 1 Ballistic Gun . | . . . . Ballistic Cannon 1 | . . 1 . Launcher 2 | . . 2 . Special Weapon . | . . . . Impact Weapon . | . . . . Slashing Weapon . | . . . . Piercing Weapon . | . . . . Special Melee Weapon . | . . . . Unidentified Prototypes 3 | . 1 . 2 Parts Lost 5 | . . 3 2 Power 1 | . . . 1 Propulsion . | . . . . Utility . | . . . . Weapon 4 | . . 3 1 Highest Loss Streak 2 | . . 2 2 Average Slot Usage (%) 94 | . 80 98 98 Engine 13 | . 13 14 13 Wheel 9 | . 28 6 . Hover 18 | . . 21 28 Storage 14 | . 14 14 14 Processor 10 | . . 12 14 Energy Gun 8 | . 24 5 . Ballistic Cannon 9 | . . 12 8 Launcher 8 | . . 9 13 Naked Turns . | . . . . Heaviest Build 25 | 12 15 18 25 Greatest Support 44 | 26 26 44 44 Greatest Overweight (x) 1 | 1 . . . Average Overweight (x) . | . . . . Largest Inventory Capacity 6 | 6 6 6 6 Average Capacity 5 | 5 6 6 6 Most Carried 6 | 2 5 6 6 Average Carried 5 | 1 3 5 5 Final Capacity 6 | 6 6 6 6 Final Carried 6 | 2 5 6 3 Class Distribution -------------------- 100% | Mutant Dominant Class ---------------- Mutant | -10/Materials Mutant | -10/Mines Mutant | -10/Exiles Resources | -11 -10 -10 -10 ----------- Run | Scr Mat Min Exi Matter Collected 602 | 251 56 295 . Remotely . | . . . . Salvage Created 429 | . 121 274 34 Parts 33 | . 2 23 8 Haulers Intercepted . | . . . . Recyclers Shooed 1 | . 1 . . Parts Field Recycled . | . . . . Retrieved Matter . | . . . . Parts Self-Destructed . | . . . . Prevented . | . . . . Kills | -11 -10 -10 -10 ------- Run | Scr Mat Min Exi Combat Hostiles Destroyed 13 | . 3 7 3 Guns 5 | . 3 2 . Cannons 3 | . . 3 . AOE 5 | . . 2 3 Classes Destroyed 7 | . 1 5 1 Worker 2 | . . 2 . Builder 2 | . . 2 . Mechanic 1 | . . 1 . Swarmer 4 | . . 4 . Grunt 6 | . 3 3 . Demolisher 1 | . . 1 . Assembled 3 | . . . 3 Best Kill Streak 4 | . 1 2 4 Combat Bots Only 3 | . 1 2 3 Max Kills in Single Turn 2 | . 1 2 2 Gunslinging . | . . . . Exploded 2 | . . 1 2 Melee . | . . . . Uniques/NPCs Destroyed 1 | . . . 1 EX-BIN (-10/Exiles) Combat | -11 -10 -10 -10 -------- Run | Scr Mat Min Exi Damage Taken 975 | . 119 593 263 Core 293 | . 18 156 119 Absorbed by Shields . | . . . . Core Remaining (%) 100 | 100 . . . Volleys Fired 63 | . 18 38 7 Largest 2 | . 2 2 2 Hottest 91 | . 90 91 90 Shots Fired 108 | . 34 66 8 Gun 53 | . 34 19 . Cannon 33 | . . 31 2 Launcher 22 | . . 16 6 Special . | . . . . Kinetic 31 | . . 31 . Thermal 53 | . 34 19 . Explosive 22 | . . 16 6 Electromagnetic 2 | . . . 2 Robot Hit Streak 8 | . 5 8 7 Robot Miss Streak 3 | . 2 3 1 Penetration Max . | . . . . Secondary Targets . | . . . . Shots Hit Robots 47 | . 17 27 3 Core Hits 58 | . 8 40 10 Critical Hits 1 | . . 1 . Critical Kills 1 | . . 1 . Critical Parts Destroyed . | . . . . Melee Attacks . | . . . . Impact . | . . . . Slashing . | . . . . Piercing . | . . . . Sneak Attacks . | . . . . Combat Hostiles . | . . . . Follow-up Attacks . | . . . . Damage Inflicted 2219 | . 178 1465 576 Guns 402 | . 177 225 . Cannons 277 | . . 277 . Explosions 1539 | . . 963 576 Melee . | . . . . Ramming 1 | . 1 . . Kinetic 277 | . . 277 . Thermal 524 | . 177 347 . Explosive 1157 | . . 841 316 Electromagnetic 260 | . . . 260 Impact . | . . . . Slashing . | . . . . Piercing . | . . . . Highest Corruption 7 | . . . 7 Average Corruption 5 | . . . 5 Corruption Purged . | . . . . Effects 3 | . . . 3 Heat Flow Errors 1 | . . . 1 Data Loss (minor) 1 | . . . 1 Targeting Errors 1 | . . . 1 Overload Shots . | . . . . Overflow Damage 67 | . . 31 36 Projectiles 7 | . . 7 . Explosions 60 | . . 24 36 Melee . | . . . . Knockbacks 7 | . . 7 . Impact . | . . . . Kinetic 6 | . . 6 . Secondary 1 | . . 1 . Self-Inflicted Damage 291 | . . 201 90 Shots 12 | . . 9 3 Rammed 1 | . 1 . . Targets Rammed 1 | . 1 . . Kicked . | . . . . Crushed . | . . . . Highest Temperature 294 | . 294 227 183 Average Temperature 67 | . 94 46 84 Received Heat Transfer 234 | . 66 168 . Effects 1 | . . 1 . Interference 1 | . . 1 . Siege Activations . | . . . . Robots Corrupted . | . . . . Combat Hostiles . | . . . . Parts Fried . | . . . . Impact Corruptions . | . . . . Robots Melted . | . . . . Combat Hostiles . | . . . . Parts Melted 3 | . 3 . . Heat Transferred 1240 | . 459 781 . Parts Sabotaged . | . . . . Parts Stolen . | . . . . Parts Stripped . | . . . . Power Chain Reactions . | . . . . Missiles Intercepted . | . . . . Latent Energy Used 353 | . . . 353 LE Corruption 6 | . . . 6 Alert | -11 -10 -10 -10 ------- Run | Scr Mat Min Exi Peak Influence 490 | . 166 490 . Initial 64 | . . 64 . Average 250 | . 63 333 . Maximum Alert Level 2 | . . 2 . Low Security (%) 34 | 100 100 7 . Level 1 33 | . . 47 . Level 2 32 | . . 45 . Level 3 . | . . . . Level 4 . | . . . . Level 5 . | . . . . High Security . | . . . . Max Security . | . . . . Squads Dispatched 2 | . 1 1 . Investigation 1 | . 1 . . Extermination . | . . . . Reinforcement . | . . . . Assault 1 | . . 1 . Garrison . | . . . . Intercept . | . . . . Construction Impeded . | . . . . Haulers Reinforced . | . . . . Stealth | -11 -10 -10 -10 --------- Run | Scr Mat Min Exi Distress Signals . | . . . . Communications Jammed . | . . . . Distress Signals . | . . . . Times Spotted 28 | . 4 16 8 Peak Tracking Total 9 | . 2 5 9 Tactical Retreats 2 | . . 1 1 Traps | -11 -10 -10 -10 ------- Run | Scr Mat Min Exi Traps Triggered . | . . . . Indirectly . | . . . . Trap Hack Attempts . | . . . . Triggered . | . . . . Disarmed . | . . . . Reprogrammed . | . . . . Reused . | . . . . Traps Extracted . | . . . . Installed . | . . . . Triggered . | . . . . Machines | -11 -10 -10 -10 ---------- Run | Scr Mat Min Exi Machines Disabled 14 | . . 9 5 Max in Single Turn 4 | . . 4 1 Machines Sabotaged . | . . . . Garrisons Compromised . | . . . . Overloaded Fab Kills . | . . . . Fab Network Shutdowns . | . . . . Hacking | -11 -10 -10 -10 --------- Run | Scr Mat Min Exi Machines Accessed 3 | . 2 . 1 Terminals . | . . . . Fabricators . | . . . . Repair Stations 1 | . 1 . . Recycling Units 1 | . 1 . . Scanalyzers . | . . . . Garrison Access . | . . . . Total Hacks 15 | . 6 . 9 Successful 15 | . 6 . 9 Failed . | . . . . Catastrophic . | . . . . Database Lockouts . | . . . . Manual 3 | . 2 . 1 Terminals . | . . . . Fabricators . | . . . . Repair Stations 5 | . 5 . . Recycling Units 1 | . 1 . . Scanalyzers . | . . . . Garrison Access . | . . . . Terminal Hacks 9 | . . . 9 Record 9 | . . . 9 Fabricator Hacks . | . . . . Repair Station Hacks 4 | . 4 . . Scan Component 2 | . 2 . . Repair 2 | . 2 . . Recycling Unit Hacks . | . . . . Scanalyzer . | . . . . Garrison Access Hacks . | . . . . Unauthorized Hacks 2 | . 2 . . Terminals . | . . . . Fabricators . | . . . . Repair Stations 1 | . 1 . . Mechanics 1 | . 1 . . Recycling Units 1 | . 1 . . Tunnel 1 | . 1 . . Scanalyzers . | . . . . Garrison Access . | . . . . Data Cores Recovered . | . . . . Used . | . . . . Hacking Detections . | . . . . Full Trace Events . | . . . . Feedback Events . | . . . . Feedback Blocked . | . . . . Robot Schematics Acquired . | . . . . Robots Built . | . . . . Matter . | . . . . Time . | . . . . Total Robot Build Rating . | . . . . Part Schematics Acquired . | . . . . Parts Built . | . . . . Matter . | . . . . Time . | . . . . Total Part Build Rating . | . . . . Parts Repaired 2 | . 2 . . Time 52 | . 52 . . Parts Recycled . | . . . . Recycled Matter . | . . . . Retrieved Matter . | . . . . Retrieved Components . | . . . . Parts Scanalyzed . | . . . . Part Schematics Acquired . | . . . . Parts Damaged . | . . . . Bothacking | -11 -10 -10 -10 ------------ Run | Scr Mat Min Exi Used RIF Installer . | . . . . Robots Hacked . | . . . . Non-combat . | . . . . Combat . | . . . . Robot Hacks Applied . | . . . . Relay Couplers Released . | . . . . Robots Rewired . | . . . . Allies Hacked . | . . . . Hacks Repelled . | . . . . Allies | -11 -10 -10 -10 -------- Run | Scr Mat Min Exi Total Allies 5 | . 1 4 . Largest Group 4 | . 1 4 1 Highest-Rated Group 102 | . 60 102 62 Highest-Rated Ally 62 | . 60 62 62 Total Orders . | . . . . Ally Attacks 57 | . 2 38 17 Total Damage 1168 | . 60 572 536 Kills 15 | . 2 10 3 Allies Corrupted . | . . . . Allies Melted . | . . . . Turrets Deployed 3 | . . . 3 Intel | -11 -10 -10 -10 ------- Run | Scr Mat Min Exi Robot Analysis Total . | . . . . Derelict Logs Recovered 1 | . . 1 . Drone Launches . | . . . . Drone Recoveries . | . . . . Exploration | -11 -10 -10 -10 ------------- Run | Scr Mat Min Exi Turns Passed 1153 | 54 232 685 182 Spaces Moved 967 | 41 110 635 181 Core 6 | 6 . . . Treads . | . . . . Legs 10 | 10 . . . Wheels 243 | 25 110 108 . Hover 708 | . . 527 181 Flight . | . . . . Fastest Speed 50 | 50 90 76 76 Average Speed 79 | 95 90 78 76 Slowest Speed 120 | 120 90 90 76 Overloaded Moves . | . . . . Propulsion Burnouts . | . . . . Robots Hopped . | . . . . Cave-ins Triggered . | . . . . Exploration Rate (%) 43 | 3 28 99 44 Regions Visited 3 Branch Regions 2 Pre-discovered Areas 1 | . 1 . . Known Exits Taken . | . . . . Unknown Exits Taken 3 | 1 1 1 . Scrap Searched 1 | . . 1 . Spaces Dug 21 | . . 21 . Terrain Destroyed 180 | . . 155 25 Melee . | . . . . Projectile . | . . . . AOE 180 | . . 155 25 Terrain Rammed . | . . . . Walls Destroyed . | . . . . Machines Disabled . | . . . . Actions | -11 -10 -10 -10 --------- Run | Scr Mat Min Exi Total 1239 | 53 208 757 221 Wait 151 | . 71 61 19 Move 964 | 40 109 634 181 Hop . | . . . . Pick Up 17 | 3 4 7 3 Fast Attach 17 | 7 3 5 2 Attach 2 | 1 . 1 . Detach . | . . . . Swap 3 | . . 3 . Drop 21 | 2 2 8 9 Fire 63 | . 18 38 7 Melee . | . . . . Ram 1 | . 1 . . Kick . | . . . . Crush . | . . . . Escape Stasis . | . . . . Rewire . | . . . . Trap . | . . . . Miscellaneous . | . . . . Route ------- -11/Scrapyard -10/Materials (discovered 2 exits: [*Mat] / [*Min]) -10/Mines (discovered 3 exits: [*Mat x2] / *Exi) -10/Exiles History --------- Turn | Location | Event 11 | -11/Scrapyard | Discovered new exit (range 14) 55 | -11/Scrapyard | Entered Materials 184 | -10/Materials | Repaired Sml. Laser 212 | -10/Materials | Repaired Med. Laser 224 | -10/Materials | Discovered new exit (range 7) 247 | -10/Materials | Discovered new exit (range 15) 287 | -10/Materials | Entered Mines 287 | -10/Mines | Accompanied by 1 ally 289 | -10/Mines | Met a Derelict testing a Signal Generator 289 | -10/Mines | Learned Materials emergency access door positions 299 | -10/Mines | Found Signal Generator 309 | -10/Mines | Build established: Mutant 404 | -10/Mines | Assembled infested the area 413 | -10/Mines | Received a Rocket Launcher from a helpful Derelict 436 | -10/Mines | Discovered new exit (range 5) 440 | -10/Mines | Assisted by bots powering up and referring to "LRC-V3" 546 | -10/Mines | Core integrity fell below 50% 585 | -10/Mines | Discovered new exit (range 11) 708 | -10/Mines | Discovered new exit (range 5) 972 | -10/Mines | Entered Exiles 972 | -10/Exiles | Accompanied by 1 ally 991 | -10/Exiles | Met 8R-AWN 1004 | -10/Exiles | Met EX-HEX 1025 | -10/Exiles | Met EX-BIN 1055 | -10/Exiles | Aligned with FarCom system 1056 | -10/Exiles | Given EX-Vault access code 1074 | -10/Exiles | Opened EX-Vault 1078 | -10/Exiles | Found Deploy-a-Sentry 1079 | -10/Exiles | Found Deploy-a-Sentry 1082 | -10/Exiles | Found Deploy-a-Sentry 1084 | -10/Exiles | Found Prototype Processor 1084 | -10/Exiles | Identified 0b10 Alert Chip 1088 | -10/Exiles | Found Prototype Energy Cannon 1088 | -10/Exiles | Identified Latent Energy Streamer 1106 | -10/Exiles | Warned to stay clear of 0b10 Research branches 1117 | -10/Exiles | Attacked by the Exiles 1123 | -10/Exiles | Destroyed EX-BIN 1127 | -10/Exiles | DAS Turret deployed 1130 | -10/Exiles | Core integrity fell below 20% 1142 | -10/Exiles | DAS Turret deployed 1144 | -10/Exiles | DAS Turret deployed 1154 | -10/Exiles | Destroyed by DAS Turret with DAS Cannon Last Messages --------------- me remotely, doing everything he can to make your journey more challenging." 01147_ HV Slug penetrates DAS Turret. 01147_ DAS Turret suffers critical hit. 01147_ DAS Turret destroyed. 01147_ HV Slug penetrates Player 2. 01147_ HV Slug penetrates Machine. 01148_ Grenade Launcher destroyed. 01148_ Hvy. Ion Engine destroyed. 01149_ HV Slug penetrates DAS Turret. 01149_ DAS Turret suffers critical hit. 01151_ Dropped Latent Energy Streamer. 01151_ HV Slug penetrates DAS Turret. 01151_ DAS Turret suffers critical hit. 01151_ DAS Turret destroyed. 01153_ The unstable cave ceiling collapses. 01153_ Player 2 drops Ion Engine. Player 2: "I picked this Ion Engine up earlier, seems like you need it." 01154_ System corrupted: Component data lost. 01154_ HV Slug penetrates Machine. Map ----- +----------------------------------------------------+ | ????????????????????????????# #?#"""""""#????? | | ????????????????????????????# #?#"""""""#????? | | ???????????????????????????## ###" "#????? | | ???????????????????????????#" ##???? | | ???????????????????????????#" ;#???? | | ???????????????????????????#" ;#???? | | ???????????????????????????#" ;#???? | | ???????????????????????????#" ;#???? | | ???????????????????????????#" ;# ??? | | ???????????????????????????## """??? | | ????????????????????????????# "##???? | | ????????????????????????????#" X" """""???? | | ???????????????????????????## t " # ???? | | ???????????????????????????# """"""#????? | | ???????????????????????????## ; # ######????? | | ??????????????????????????## # #???????????? | | ?????????????????????###### #???????????? | | ?????????????X# ?#"###""""" # ##??????????? | | ???????????? """""" *@ % ############ | | ??????????? "" """ % ##""""""""" | | ?????????? " " % " """ """ | | ?????????? % "" " | | ????????? " | | ?????????? ] " | | ?????????? " | | ?????????? @ | | ?????????? """""" | | ?????????? ######" " | | ??????????? ""#?????#####"" | | ??????????? """#??????????##""" | | ???????????? """#????????????#"""" | | ???????????? ""?????????????#"" | | ???????????? ??????????????????""" | | ????????????? ??????????????????? | | ??????????????????????????????????? | | ??????????????????????????????????? | | ?????????????????????????????????? | | ?????????????????????????????????? " | | ???????????????????????????????????? """ | | ??????????????????????????????????????" " ""#" | | ????????????????????????????????????????" "??##""" | | ??????????????????????????????????????????????#### | | ?????????????????????????????????????????????????? | | ?????????????????????????????????????????????????? | | ?????????????????????????????????????????????????? | | ?????????????????????????????????????????????????? | | ?????????????????????????????????????????????????? | | ?????????????????????????????????????????????????? | | ?????????????????????????????????????????????????? | | ?????????????????????????????????????????????????? | +----------------------------------------------------+ Best States ------------- Heat Dissipation 25 Energy Generation 14 Energy Capacity 280 Matter Stores 300 Matter Capacity 300 Sight Range 16 Terrain Scan Density 10 Evasion (%) 49 Targeting Accuracy 5 Item Schematics ----------------- None Robot Schematics ------------------ None Fabricated ------------ Nothing Alien Tech Used ----------------- None Achievements -------------- None Challenges ------------ None Player 2 | -11 -10 -10 -10 ---------- Run | Scr Mat Min Exi Slots Evolved . | . . . . Power . | . . . . Propulsion . | . . . . Utility . | . . . . Weapon . | . . . . Parts Attached 8 | . 5 3 . Parts Lost . | . . . . Damage Taken 289 | . . 174 115 Core . | . . . . Player 2/Cogmind (%) . | . . . . Absorbed by Shields . | . . . . Damage Inflicted 494 | . 60 324 110 Player 2/Cogmind (%) 18 | . 25 18 16 Combat Hostiles Destroyed 6 | . 1 4 1 Player 2/Cogmind (%) 31 | . 25 36 25 Game ------ Seed SupercompositeFlakWeb Manual? 0 Play Time 00:11:12 Cumulative 302.2 hours Start 2020.09.28 @ 17:42:49 End 2020.09.28 @ 17:51:50 Sessions 1 Manual Loads 0 Difficulty Rogue Special Mode AFD2020/Player2 Game No. 160 Rogue 3 Adventurer 52 Explorer 105 Win Type - Total 19 Types 17/0/1/0/0/0/0/1/0 Lore% 61 Gallery% 85 Achievement% 63 Wizard Run 0 Options --------- ASCII 0 Keyboard 0 Movement Mouse Keybinds 0 Fullscreen 2 Font 18/Terminus Map View 76x50 Tactical HUD 1 Map Filters NONE Filters SATURATION(100) Steam 1 RUN: daa08aea-86f7-4765-b0e5-1f900276811a